[Event "*** SCC Grand Prix: Titled Tuesday Blitz"]
[Site "Chess.com"]
[Date "2020.06.02"]
[Round "9"]
[White "GjakanTati"]
[Black "killer311"]
[Result "1-0"]
[WhiteElo "2624"]
[BlackElo "2408"]
[TimeControl "180+1"]
[EndTime "11:45:11 PDT"]
[Termination "GjakanTati won by resignation"]

1. d4 {[%clk 0:02:38]} 1... d5 {[%clk 0:02:58.2]} 2. c4 {[%clk 0:02:38.3]} 2...
c6 {[%clk 0:02:58.4]} 3. Nf3 {[%clk 0:02:38.3]} 3... Nf6 {[%clk 0:02:58.7]} 4.
cxd5 {[%clk 0:02:38.7]} 4... cxd5 {[%clk 0:02:58.5]} 5. Bf4 {[%clk 0:02:39.1]}
5... Nc6 {[%clk 0:02:58.9]} 6. e3 {[%clk 0:02:39]} 6... a6 {[%clk 0:02:57.7]} 7.
Nc3 {[%clk 0:02:39.4]} 7... Bg4 {[%clk 0:02:56.6]} 8. Bd3 {[%clk 0:02:39.1]}
8... e6 {[%clk 0:02:55.7]} 9. O-O {[%clk 0:02:39.6]} 9... Bd6 {[%clk 0:02:54.7]}
10. Bxd6 {[%clk 0:02:38.8]} 10... Qxd6 {[%clk 0:02:55.6]} 11. Rc1 {[%clk
0:02:38.6]} 11... O-O {[%clk 0:02:55.5]} 12. h3 {[%clk 0:02:37.6]} 12... Bh5
{[%clk 0:02:53.6]} 13. Na4 {[%clk 0:02:38.1]} 13... Ne4 {[%clk 0:02:51.8]} 14.
Nc5 {[%clk 0:02:31.4]} 14... Nxc5 {[%clk 0:02:37]} 15. dxc5 {[%clk 0:02:32.3]}
15... Qe7 {[%clk 0:02:34.5]} 16. a3 {[%clk 0:02:24.6]} 16... e5 {[%clk
0:02:34.5]} 17. Be2 {[%clk 0:02:22.9]} 17... Rad8 {[%clk 0:02:31.5]} 18. b4
{[%clk 0:02:19.6]} 18... d4 {[%clk 0:02:31.2]} 19. e4 {[%clk 0:02:01.1]} 19...
d3 {[%clk 0:02:26.9]} 20. Bxd3 {[%clk 0:02:01]} 20... Nd4 {[%clk 0:02:22.4]} 21.
g4 {[%clk 0:01:56.4]} 21... Bg6 {[%clk 0:02:15.7]} 22. Nxd4 {[%clk 0:01:54.5]}
22... Rxd4 {[%clk 0:02:16.6]} 23. Qf3 {[%clk 0:01:54.7]} 23... Rfd8 {[%clk
0:02:14.6]} 24. Bc2 {[%clk 0:01:52.8]} 24... Qg5 {[%clk 0:02:11.6]} 25. Rcd1
{[%clk 0:01:49]} 25... h5 {[%clk 0:02:08.8]} 26. Kg2 {[%clk 0:01:36]} 26... hxg4
{[%clk 0:02:06.9]} 27. Qxg4 {[%clk 0:01:30.8]} 27... Qxg4+ {[%clk 0:02:03.8]}
28. hxg4 {[%clk 0:01:31.7]} 28... Bxe4+ {[%clk 0:01:59.6]} 29. Bxe4 {[%clk
0:01:21.1]} 29... Rxd1 {[%clk 0:01:59.2]} 30. Rxd1 {[%clk 0:01:21.6]} 30... Rxd1
{[%clk 0:01:59]} 31. Bxb7 {[%clk 0:01:22.2]} 31... Ra1 {[%clk 0:01:58.1]} 32.
Bxa6 {[%clk 0:01:18.1]} 32... Rxa3 {[%clk 0:01:58.1]} 33. b5 {[%clk 0:01:17.6]}
33... Rc3 {[%clk 0:01:56.9]} 34. c6 {[%clk 0:01:16.5]} 34... Kf8 {[%clk
0:01:56.8]} 35. Bb7 {[%clk 0:01:15.8]} 35... Ke7 {[%clk 0:01:55.8]} 36. b6
{[%clk 0:01:15.5]} 36... Kd6 {[%clk 0:01:52.7]} 37. c7 {[%clk 0:01:14]} 37...
Kd7 {[%clk 0:01:52.9]} 38. Bd5 {[%clk 0:00:57.8]} 38... f6 {[%clk 0:01:47.6]}
39. Be4 {[%clk 0:00:55]} 39... Rb3 {[%clk 0:01:44.5]} 40. Bf5+ {[%clk
0:00:54.5]} 40... Ke7 {[%clk 0:01:43.8]} 41. c8=Q {[%clk 0:00:55.4]} 41... Rxb6
{[%clk 0:01:43.8]} 42. Qc7+ {[%clk 0:00:55.4]} 1-0

[Event "*** SCC Grand Prix: Titled Tuesday Blitz"]
[Site "Chess.com"]
[Date "2020.06.02"]
[Round "9"]
[White "AniJak"]
[Black "NZT72"]
[Result "1/2-1/2"]
[WhiteElo "2268"]
[BlackElo "2400"]
[TimeControl "180+1"]
[EndTime "11:45:11 PDT"]
[Termination "Game drawn by repetition"]

1. e4 {[%clk 0:03:00.9]} 1... e5 {[%clk 0:02:59.7]} 2. Nc3 {[%clk 0:02:57.9]}
2... Nf6 {[%clk 0:02:59]} 3. g3 {[%clk 0:02:57.9]} 3... Nc6 {[%clk 0:02:58.2]}
4. Bg2 {[%clk 0:02:57.9]} 4... Bc5 {[%clk 0:02:58.9]} 5. d3 {[%clk 0:02:57.8]}
5... d6 {[%clk 0:02:53.6]} 6. Nge2 {[%clk 0:02:57.6]} 6... a6 {[%clk 0:02:53.1]}
7. O-O {[%clk 0:02:56.5]} 7... Nd4 {[%clk 0:02:50.9]} 8. Nxd4 {[%clk 0:02:41.9]}
8... Bxd4 {[%clk 0:02:50.9]} 9. Nd5 {[%clk 0:02:37.1]} 9... Nxd5 {[%clk
0:02:36.3]} 10. exd5 {[%clk 0:02:38]} 10... O-O {[%clk 0:02:33.4]} 11. c3 {[%clk
0:02:35.3]} 11... Bb6 {[%clk 0:02:30.2]} 12. Be3 {[%clk 0:02:35.7]} 12... Bxe3
{[%clk 0:02:26.2]} 13. fxe3 {[%clk 0:02:36.6]} 13... f5 {[%clk 0:02:19.6]} 14.
e4 {[%clk 0:02:25.4]} 14... Qg5 {[%clk 0:02:17.2]} 15. exf5 {[%clk 0:02:03.9]}
15... Bxf5 {[%clk 0:02:16.4]} 16. Qe2 {[%clk 0:02:01]} 16... h5 {[%clk
0:01:36.4]} 17. Be4 {[%clk 0:01:58.7]} 17... Bh3 {[%clk 0:01:30.8]} 18. Bg2
{[%clk 0:01:56.4]} 18... Bxg2 {[%clk 0:01:17.5]} 19. Kxg2 {[%clk 0:01:54.8]}
19... h4 {[%clk 0:01:16.2]} 20. Rxf8+ {[%clk 0:01:35]} 20... Rxf8 {[%clk
0:01:15.3]} 21. Rf1 {[%clk 0:01:35.3]} 21... Rxf1 {[%clk 0:01:11.7]} 22. Qxf1
{[%clk 0:01:34.6]} 22... hxg3 {[%clk 0:01:03.8]} 23. hxg3 {[%clk 0:01:33.7]}
23... Qd2+ {[%clk 0:01:03.7]} 24. Kh3 {[%clk 0:01:26.1]} 24... Qh6+ {[%clk
0:00:41.9]} 25. Kg2 {[%clk 0:01:24.9]} 25... Qd2+ {[%clk 0:00:41.1]} 26. Kh3
{[%clk 0:01:24.5]} 26... Qh6+ {[%clk 0:00:35.8]} 27. Kg2 {[%clk 0:01:24]} 27...
Qd2+ {[%clk 0:00:35.4]} 1/2-1/2

[Event "*** SCC Grand Prix: Titled Tuesday Blitz"]
[Site "Chess.com"]
[Date "2020.06.02"]
[Round "9"]
[White "Gerasimenyuk_Miha"]
[Black "MalcolmPein"]
[Result "1-0"]
[WhiteElo "2357"]
[BlackElo "2216"]
[TimeControl "180+1"]
[EndTime "11:45:15 PDT"]
[Termination "Gerasimenyuk_Miha won by resignation"]

1. d4 {[%clk 0:03:00.9]} 1... Nf6 {[%clk 0:02:59.1]} 2. Nf3 {[%clk 0:03:00.1]}
2... b6 {[%clk 0:02:57.4]} 3. Bg5 {[%clk 0:03:00.6]} 3... Ne4 {[%clk 0:02:55.7]}
4. Bh4 {[%clk 0:03:00.2]} 4... Bb7 {[%clk 0:02:56.2]} 5. e3 {[%clk 0:03:00.6]}
5... g6 {[%clk 0:02:54]} 6. Nbd2 {[%clk 0:03:00.4]} 6... Bg7 {[%clk 0:02:53.3]}
7. Bd3 {[%clk 0:02:58.9]} 7... Nxd2 {[%clk 0:02:51.7]} 8. Qxd2 {[%clk
0:02:59.8]} 8... O-O {[%clk 0:02:51.4]} 9. O-O-O {[%clk 0:03:00.3]} 9... d6
{[%clk 0:02:44.2]} 10. Bg5 {[%clk 0:02:59.4]} 10... h6 {[%clk 0:02:36.4]} 11.
Bf4 {[%clk 0:02:57.7]} 11... e5 {[%clk 0:02:34.5]} 12. dxe5 {[%clk 0:02:58.6]}
12... dxe5 {[%clk 0:02:34.6]} 13. Bxe5 {[%clk 0:02:50.7]} 13... Bxe5 {[%clk
0:02:32.1]} 14. Nxe5 {[%clk 0:02:50.1]} 14... Qd5 {[%clk 0:02:32.7]} 15. f4
{[%clk 0:02:43.7]} 15... Qxa2 {[%clk 0:02:31]} 16. c3 {[%clk 0:02:41.5]} 16...
Nc6 {[%clk 0:02:22.3]} 17. Bc4 {[%clk 0:02:36.6]} 17... Qa1+ {[%clk 0:02:01.2]}
18. Kc2 {[%clk 0:02:33.8]} 18... Qa4+ {[%clk 0:02:01.8]} 19. Bb3 {[%clk
0:02:16.4]} 19... Qe4+ {[%clk 0:02:02.3]} 20. Nd3 {[%clk 0:02:08]} 20... Ne5
{[%clk 0:02:02.7]} 21. fxe5 {[%clk 0:02:05.4]} 21... c5 {[%clk 0:02:00.3]} 22.
c4 {[%clk 0:01:51]} 22... Rad8 {[%clk 0:01:50.5]} 23. Kc1 {[%clk 0:01:44.8]}
23... b5 {[%clk 0:01:47.4]} 24. Bc2 {[%clk 0:01:28.8]} 24... Qc6 {[%clk
0:01:17.9]} 25. Qc3 {[%clk 0:01:20.7]} 25... b4 {[%clk 0:01:17.8]} 26. Qb3
{[%clk 0:01:18]} 26... a5 {[%clk 0:01:13.1]} 27. Nf4 {[%clk 0:01:06.9]} 27... a4
{[%clk 0:01:04.3]} 28. Qxa4 {[%clk 0:01:05.2]} 28... Qe4 {[%clk 0:01:01.9]} 29.
Bxe4 {[%clk 0:01:03]} 1-0

[Event "*** SCC Grand Prix: Titled Tuesday Blitz"]
[Site "Chess.com"]
[Date "2020.06.02"]
[Round "9"]
[White "bazar-wokzal"]
[Black "Xeniya2005"]
[Result "1-0"]
[WhiteElo "2412"]
[BlackElo "2301"]
[TimeControl "180+1"]
[EndTime "11:45:16 PDT"]
[Termination "bazar-wokzal won by checkmate"]

1. e4 {[%clk 0:03:00.9]} 1... e6 {[%clk 0:02:59]} 2. d4 {[%clk 0:02:59.1]} 2...
d5 {[%clk 0:02:58.3]} 3. exd5 {[%clk 0:02:59.5]} 3... exd5 {[%clk 0:02:57.8]} 4.
Nf3 {[%clk 0:02:58.8]} 4... Bd6 {[%clk 0:02:56]} 5. c4 {[%clk 0:02:57.2]} 5...
dxc4 {[%clk 0:02:51.5]} 6. Bxc4 {[%clk 0:02:56.5]} 6... Ne7 {[%clk 0:02:50.9]}
7. Ng5 {[%clk 0:02:55.3]} 7... Be6 {[%clk 0:01:19.9]} 8. Bxe6 {[%clk 0:02:49.7]}
8... fxe6 {[%clk 0:01:20.8]} 9. Nxe6 {[%clk 0:02:49.5]} 9... Bb4+ {[%clk
0:01:19.5]} 10. Nc3 {[%clk 0:02:48.6]} 10... Qd6 {[%clk 0:01:18.1]} 11. Nxg7+
{[%clk 0:02:47.1]} 11... Kd8 {[%clk 0:01:17.3]} 12. Nh5 {[%clk 0:02:41.5]} 12...
Nbc6 {[%clk 0:01:15.1]} 13. O-O {[%clk 0:02:33.1]} 13... Rg8 {[%clk 0:01:10.1]}
14. Bf4 {[%clk 0:02:27.4]} 14... Qg6 {[%clk 0:01:05.1]} 15. Bg3 {[%clk
0:02:25.1]} 15... Nf5 {[%clk 0:00:46]} 16. Nf4 {[%clk 0:02:22.6]} 16... Qf7
{[%clk 0:00:43.3]} 17. d5 {[%clk 0:02:16.3]} 17... Nce7 {[%clk 0:00:36.4]} 18.
Ne6+ {[%clk 0:02:15.3]} 18... Kc8 {[%clk 0:00:29.5]} 19. Bxc7 {[%clk 0:02:10.5]}
19... a5 {[%clk 0:00:21.1]} 20. Rc1 {[%clk 0:02:06.4]} 20... Kd7 {[%clk
0:00:18.8]} 21. Qa4+ {[%clk 0:02:02.1]} 21... Kc8 {[%clk 0:00:17.7]} 22. Ne4
{[%clk 0:01:49.5]} 22... Qg6 {[%clk 0:00:12.9]} 23. Bg3+ {[%clk 0:01:44.4]}
23... Nc6 {[%clk 0:00:12.4]} 24. Rxc6+ {[%clk 0:01:41.9]} 24... bxc6 {[%clk
0:00:11.8]} 25. Qxc6# {[%clk 0:01:41.9]} 1-0

[Event "*** SCC Grand Prix: Titled Tuesday Blitz"]
[Site "Chess.com"]
[Date "2020.06.02"]
[Round "9"]
[White "BogdanDeac"]
[Black "Korchmar_Vasiliy"]
[Result "1-0"]
[WhiteElo "2913"]
[BlackElo "2597"]
[TimeControl "180+1"]
[EndTime "11:45:23 PDT"]
[Termination "BogdanDeac won by resignation"]

1. Nf3 {[%clk 0:03:00.9]} 1... d5 {[%clk 0:02:59.9]} 2. d4 {[%clk 0:03:00.3]}
2... Nf6 {[%clk 0:02:59.9]} 3. c4 {[%clk 0:03:00.8]} 3... e6 {[%clk 0:03:00.3]}
4. Nc3 {[%clk 0:03:00.4]} 4... Bb4 {[%clk 0:03:00.5]} 5. Bg5 {[%clk 0:02:55.8]}
5... h6 {[%clk 0:02:57.5]} 6. Bxf6 {[%clk 0:02:55.8]} 6... Qxf6 {[%clk
0:02:58.4]} 7. Qa4+ {[%clk 0:02:56.1]} 7... Nc6 {[%clk 0:02:58.2]} 8. e3 {[%clk
0:02:56.7]} 8... O-O {[%clk 0:02:54.7]} 9. Rd1 {[%clk 0:02:57.3]} 9... Qg6
{[%clk 0:02:43.7]} 10. h4 {[%clk 0:02:56.1]} 10... a6 {[%clk 0:02:29.9]} 11. h5
{[%clk 0:02:51.2]} 11... Qf6 {[%clk 0:02:29]} 12. Qc2 {[%clk 0:02:50.2]} 12...
dxc4 {[%clk 0:02:21.8]} 13. Bxc4 {[%clk 0:02:48.4]} 13... e5 {[%clk 0:02:18.4]}
14. d5 {[%clk 0:02:35.2]} 14... e4 {[%clk 0:01:25]} 15. Nd2 {[%clk 0:02:30.2]}
15... Ne5 {[%clk 0:01:02.6]} 16. Ncxe4 {[%clk 0:01:59.5]} 16... Qe7 {[%clk
0:01:02]} 17. a3 {[%clk 0:01:59]} 17... Bxd2+ {[%clk 0:00:39.4]} 18. Nxd2 {[%clk
0:01:57.2]} 18... Bg4 {[%clk 0:00:35.5]} 19. Be2 {[%clk 0:01:55.8]} 19... Bxe2
{[%clk 0:00:33.1]} 20. Kxe2 {[%clk 0:01:55.6]} 20... c6 {[%clk 0:00:31.4]} 21.
dxc6 {[%clk 0:01:45.3]} 21... Rac8 {[%clk 0:00:31.4]} 22. Qe4 {[%clk 0:01:44.9]}
22... Rxc6 {[%clk 0:00:28.5]} 23. f4 {[%clk 0:01:42.7]} 23... Re6 {[%clk
0:00:16.1]} 24. fxe5 {[%clk 0:01:41.5]} 24... Rxe5 {[%clk 0:00:17]} 25. Qf4
{[%clk 0:01:35.9]} 25... Re8 {[%clk 0:00:17.4]} 26. Rh3 {[%clk 0:01:34.3]} 26...
Re4 {[%clk 0:00:16.8]} 27. Nxe4 {[%clk 0:01:33.2]} 1-0

[Event "*** SCC Grand Prix: Titled Tuesday Blitz"]
[Site "Chess.com"]
[Date "2020.06.02"]
[Round "9"]
[White "The_Machine04"]
[Black "HunterBRR"]
[Result "1-0"]
[WhiteElo "2292"]
[BlackElo "2033"]
[TimeControl "180+1"]
[EndTime "11:45:25 PDT"]
[Termination "The_Machine04 won by resignation"]

1. d4 {[%clk 0:03:00.9]} 1... Nf6 {[%clk 0:02:58.8]} 2. Bg5 {[%clk 0:02:56.5]}
2... e6 {[%clk 0:02:54.7]} 3. Nd2 {[%clk 0:02:54.9]} 3... Be7 {[%clk 0:02:53.6]}
4. e4 {[%clk 0:02:54.3]} 4... d6 {[%clk 0:02:42.2]} 5. Bd3 {[%clk 0:02:50.8]}
5... c5 {[%clk 0:02:38.2]} 6. c3 {[%clk 0:02:50.5]} 6... cxd4 {[%clk 0:02:35.2]}
7. cxd4 {[%clk 0:02:50.3]} 7... Nc6 {[%clk 0:02:35]} 8. Ngf3 {[%clk 0:02:50]}
8... e5 {[%clk 0:02:30]} 9. d5 {[%clk 0:02:40]} 9... Nd4 {[%clk 0:02:25.1]} 10.
Nxd4 {[%clk 0:02:37.8]} 10... exd4 {[%clk 0:02:26]} 11. O-O {[%clk 0:02:36.2]}
11... O-O {[%clk 0:02:25.5]} 12. Nf3 {[%clk 0:02:32.6]} 12... Bg4 {[%clk
0:02:22.9]} 13. h3 {[%clk 0:02:30.2]} 13... Bh5 {[%clk 0:02:20.2]} 14. Re1
{[%clk 0:02:29.8]} 14... h6 {[%clk 0:02:09.9]} 15. Bf4 {[%clk 0:02:23.4]} 15...
Bxf3 {[%clk 0:01:47.6]} 16. Qxf3 {[%clk 0:02:20.6]} 16... Nd7 {[%clk 0:01:47.7]}
17. Qg3 {[%clk 0:02:11.7]} 17... Ne5 {[%clk 0:00:56.5]} 18. Bxe5 {[%clk
0:02:08.1]} 18... dxe5 {[%clk 0:00:54.5]} 19. Qxe5 {[%clk 0:02:08.6]} 19... Rc8
{[%clk 0:00:46.6]} 20. Qxd4 {[%clk 0:02:01.7]} 20... Bc5 {[%clk 0:00:46.7]} 21.
Qe5 {[%clk 0:01:58]} 21... Re8 {[%clk 0:00:44.7]} 22. Qg3 {[%clk 0:01:56.9]}
22... Qf6 {[%clk 0:00:37.4]} 23. Re2 {[%clk 0:01:53.8]} 23... Re5 {[%clk
0:00:36.1]} 24. Rc2 {[%clk 0:01:45.7]} 24... Rg5 {[%clk 0:00:22.9]} 25. Rxc5
{[%clk 0:01:33.6]} 25... Rxc5 {[%clk 0:00:16]} 26. Qb8+ {[%clk 0:01:32.8]} 26...
Kh7 {[%clk 0:00:15.8]} 27. e5+ {[%clk 0:01:32.8]} 1-0

[Event "*** SCC Grand Prix: Titled Tuesday Blitz"]
[Site "Chess.com"]
[Date "2020.06.02"]
[Round "9"]
[White "albi1999"]
[Black "ChelsieMonica"]
[Result "1-0"]
[WhiteElo "2650"]
[BlackElo "2463"]
[TimeControl "180+1"]
[EndTime "11:45:26 PDT"]
[Termination "albi1999 won by resignation"]

1. d4 {[%clk 0:03:00.6]} 1... Nf6 {[%clk 0:02:59.8]} 2. c4 {[%clk 0:02:57]} 2...
e6 {[%clk 0:02:58.7]} 3. Nf3 {[%clk 0:02:56.9]} 3... b6 {[%clk 0:02:57.4]} 4. g3
{[%clk 0:02:57]} 4... Bb7 {[%clk 0:02:54.6]} 5. Bg2 {[%clk 0:02:56.2]} 5... Be7
{[%clk 0:02:52.7]} 6. O-O {[%clk 0:02:55.6]} 6... O-O {[%clk 0:02:52.7]} 7. Nc3
{[%clk 0:02:56.1]} 7... d6 {[%clk 0:02:13.9]} 8. Qc2 {[%clk 0:02:54.4]} 8...
Nbd7 {[%clk 0:02:05.4]} 9. e4 {[%clk 0:02:43.6]} 9... e5 {[%clk 0:02:04.2]} 10.
h3 {[%clk 0:02:40.9]} 10... a5 {[%clk 0:01:57.3]} 11. Be3 {[%clk 0:02:40.4]}
11... a4 {[%clk 0:01:47.6]} 12. Rfd1 {[%clk 0:02:36.8]} 12... Ra5 {[%clk
0:01:28.2]} 13. Kh2 {[%clk 0:02:18.4]} 13... Qa8 {[%clk 0:01:24.2]} 14. d5
{[%clk 0:02:07.7]} 14... Nc5 {[%clk 0:01:19.1]} 15. Nd2 {[%clk 0:02:06.2]} 15...
Qc8 {[%clk 0:01:14]} 16. b4 {[%clk 0:02:02.3]} 16... axb3 {[%clk 0:01:13.8]} 17.
axb3 {[%clk 0:02:03.2]} 17... Rxa1 {[%clk 0:01:09.5]} 18. Rxa1 {[%clk
0:02:04.1]} 18... h5 {[%clk 0:00:54.4]} 19. b4 {[%clk 0:02:02.1]} 19... Ncd7
{[%clk 0:00:54.1]} 20. Nb5 {[%clk 0:01:54]} 20... Re8 {[%clk 0:00:47.1]} 21. f3
{[%clk 0:01:53.3]} 21... Nf8 {[%clk 0:00:45.9]} 22. h4 {[%clk 0:01:53.3]} 22...
Qb8 {[%clk 0:00:43.2]} 23. Qa4 {[%clk 0:01:49.5]} 23... c5 {[%clk 0:00:25.6]}
24. bxc5 {[%clk 0:01:35.3]} 24... bxc5 {[%clk 0:00:24.3]} 25. Nb3 {[%clk
0:01:35.2]} 25... N8d7 {[%clk 0:00:22.6]} 26. Qa7 {[%clk 0:01:34]} 26... Bd8
{[%clk 0:00:18.6]} 27. Qxb8 {[%clk 0:01:31]} 27... Nxb8 {[%clk 0:00:19.2]} 28.
Nxd6 {[%clk 0:01:31.6]} 28... Re7 {[%clk 0:00:19.8]} 29. Nxc5 {[%clk 0:01:27.4]}
1-0

[Event "*** SCC Grand Prix: Titled Tuesday Blitz"]
[Site "Chess.com"]
[Date "2020.06.02"]
[Round "9"]
[White "AnishGiri"]
[Black "Sychev_Klementy"]
[Result "1-0"]
[WhiteElo "2988"]
[BlackElo "2844"]
[TimeControl "180+1"]
[EndTime "11:45:30 PDT"]
[Termination "AnishGiri won on time"]

1. e4 {[%clk 0:03:00.9]} 1... e5 {[%clk 0:02:58.6]} 2. Nf3 {[%clk 0:03:01.1]}
2... Nc6 {[%clk 0:02:59]} 3. Bc4 {[%clk 0:03:01.6]} 3... Nf6 {[%clk 0:02:58.8]}
4. d3 {[%clk 0:03:02.1]} 4... Bc5 {[%clk 0:02:58.7]} 5. O-O {[%clk 0:03:02.2]}
5... a6 {[%clk 0:02:53.6]} 6. c3 {[%clk 0:03:01.1]} 6... d6 {[%clk 0:02:53.4]}
7. Nbd2 {[%clk 0:03:00.8]} 7... Ba7 {[%clk 0:02:51.9]} 8. a4 {[%clk 0:02:52.1]}
8... O-O {[%clk 0:02:44.4]} 9. h3 {[%clk 0:02:50.1]} 9... Kh8 {[%clk 0:02:43.7]}
10. b4 {[%clk 0:02:47.8]} 10... Ng8 {[%clk 0:02:37.8]} 11. Ba2 {[%clk
0:02:38.1]} 11... f5 {[%clk 0:02:32.7]} 12. b5 {[%clk 0:02:38.5]} 12... axb5
{[%clk 0:01:42.2]} 13. axb5 {[%clk 0:02:37.8]} 13... Nce7 {[%clk 0:01:42.3]} 14.
d4 {[%clk 0:02:38.1]} 14... exd4 {[%clk 0:01:18.3]} 15. cxd4 {[%clk 0:02:36.2]}
15... fxe4 {[%clk 0:01:14.9]} 16. Nxe4 {[%clk 0:02:33]} 16... Bb6 {[%clk
0:00:43.6]} 17. Bg5 {[%clk 0:02:20.8]} 17... h6 {[%clk 0:00:39.9]} 18. Bh4
{[%clk 0:02:18.4]} 18... Qd7 {[%clk 0:00:35.4]} 19. Qe2 {[%clk 0:02:07.5]} 19...
Nf5 {[%clk 0:00:08.2]} 20. Be6 {[%clk 0:01:54.4]} 20... Rxa1 {[%clk 0:00:07.9]}
21. Bxd7 {[%clk 0:01:54.9]} 21... Rxf1+ {[%clk 0:00:08.1]} 22. Qxf1 {[%clk
0:01:55.3]} 22... Bxd7 {[%clk 0:00:08.8]} 23. Qd3 {[%clk 0:01:54.7]} 23... Nge7
{[%clk 0:00:07.3]} 24. Ng3 {[%clk 0:01:51.5]} 24... Nxg3 {[%clk 0:00:04.4]} 25.
Bxe7 {[%clk 0:01:48.4]} 25... Re8 {[%clk 0:00:04.8]} 26. Nh4 {[%clk 0:01:43.2]}
26... Nh5 {[%clk 0:00:02.4]} 27. Qf3 {[%clk 0:01:40.5]} 1-0

[Event "*** SCC Grand Prix: Titled Tuesday Blitz"]
[Site "Chess.com"]
[Date "2020.06.02"]
[Round "9"]
[White "Moon_stone123"]
[Black "Zurability"]
[Result "0-1"]
[WhiteElo "2477"]
[BlackElo "2701"]
[TimeControl "180+1"]
[EndTime "11:45:31 PDT"]
[Termination "Zurability won by resignation"]

1. Nf3 {[%clk 0:03:00.9]} 1... g6 {[%clk 0:02:59.3]} 2. g3 {[%clk 0:03:00.2]}
2... Bg7 {[%clk 0:03:00.2]} 3. d4 {[%clk 0:02:59.2]} 3... d5 {[%clk 0:03:01.1]}
4. Bg2 {[%clk 0:02:59.1]} 4... Nf6 {[%clk 0:03:01.9]} 5. O-O {[%clk 0:02:59.2]}
5... O-O {[%clk 0:03:02.8]} 6. b3 {[%clk 0:02:58.7]} 6... c6 {[%clk 0:03:03.7]}
7. Bb2 {[%clk 0:02:58.5]} 7... a5 {[%clk 0:03:04.5]} 8. a3 {[%clk 0:02:57.7]}
8... a4 {[%clk 0:03:04.5]} 9. b4 {[%clk 0:02:56.5]} 9... Nbd7 {[%clk 0:03:03.2]}
10. Ne5 {[%clk 0:02:52.7]} 10... Nxe5 {[%clk 0:03:01.7]} 11. dxe5 {[%clk
0:02:52.4]} 11... Nd7 {[%clk 0:03:02.6]} 12. f4 {[%clk 0:02:50.1]} 12... e6
{[%clk 0:03:02.1]} 13. Kh1 {[%clk 0:02:47.6]} 13... f6 {[%clk 0:03:02]} 14. exf6
{[%clk 0:02:44.8]} 14... Nxf6 {[%clk 0:03:02.9]} 15. Nd2 {[%clk 0:02:41.6]}
15... Ng4 {[%clk 0:03:02.7]} 16. Bxg7 {[%clk 0:02:36]} 16... Kxg7 {[%clk
0:03:03.6]} 17. Nf3 {[%clk 0:02:33.4]} 17... Qf6 {[%clk 0:03:00.6]} 18. Qd4
{[%clk 0:02:25.7]} 18... Qxd4 {[%clk 0:02:58.8]} 19. Nxd4 {[%clk 0:02:26.6]}
19... Ne3 {[%clk 0:02:51.3]} 20. Rfc1 {[%clk 0:02:21]} 20... e5 {[%clk
0:02:50.6]} 21. fxe5 {[%clk 0:02:10.4]} 21... Re8 {[%clk 0:02:51.1]} 22. Nf3
{[%clk 0:01:52.3]} 22... Bf5 {[%clk 0:02:34.4]} 23. Nd4 {[%clk 0:01:37.8]} 23...
Rxe5 {[%clk 0:02:31.7]} 24. Nxf5+ {[%clk 0:01:37.3]} 24... Rxf5 {[%clk
0:02:30.8]} 25. Bf3 {[%clk 0:01:34.2]} 25... Re8 {[%clk 0:02:28]} 26. b5 {[%clk
0:01:23.3]} 26... Nc4 {[%clk 0:02:23.2]} 27. bxc6 {[%clk 0:01:21.2]} 27... bxc6
{[%clk 0:02:24.1]} 28. Rab1 {[%clk 0:01:18.5]} 28... Re3 {[%clk 0:02:24.1]} 29.
Rb7+ {[%clk 0:01:11.2]} 29... Rf7 {[%clk 0:02:23]} 30. Rb4 {[%clk 0:00:51.9]}
30... Rxa3 {[%clk 0:02:18.7]} 31. c3 {[%clk 0:00:43.8]} 31... Ra7 {[%clk
0:02:14.2]} 32. Rcb1 {[%clk 0:00:39.2]} 32... Rxc3 {[%clk 0:02:12.1]} 33. Rb7+
{[%clk 0:00:37.6]} 33... Rxb7 {[%clk 0:02:11.3]} 34. Rxb7+ {[%clk 0:00:38.5]}
34... Kf6 {[%clk 0:02:12]} 35. Rxh7 {[%clk 0:00:37.5]} 35... a3 {[%clk
0:02:12.9]} 36. Ra7 {[%clk 0:00:37]} 36... Rc2 {[%clk 0:02:09.2]} 37. e4 {[%clk
0:00:33.4]} 37... d4 {[%clk 0:02:07.5]} 38. e5+ {[%clk 0:00:26]} 38... Nxe5
{[%clk 0:02:06.7]} 39. Rxa3 {[%clk 0:00:24.3]} 39... Nxf3 {[%clk 0:02:03.9]} 40.
Rxf3+ {[%clk 0:00:24.6]} 40... Ke5 {[%clk 0:02:04.8]} 41. Kg1 {[%clk 0:00:23.1]}
41... c5 {[%clk 0:02:02.7]} 42. h4 {[%clk 0:00:21.9]} 42... c4 {[%clk
0:02:03.1]} 43. Rf8 {[%clk 0:00:22]} 43... d3 {[%clk 0:02:03.4]} 44. Kf1 {[%clk
0:00:20.9]} 44... Rc1+ {[%clk 0:02:02.9]} 45. Kf2 {[%clk 0:00:20.6]} 45... d2
{[%clk 0:02:03.8]} 46. Re8+ {[%clk 0:00:20.4]} 46... Kf6 {[%clk 0:02:04.4]} 0-1

[Event "*** SCC Grand Prix: Titled Tuesday Blitz"]
[Site "Chess.com"]
[Date "2020.06.02"]
[Round "9"]
[White "praveenb2002"]
[Black "ural58"]
[Result "1-0"]
[WhiteElo "2707"]
[BlackElo "2436"]
[TimeControl "180+1"]
[EndTime "11:45:32 PDT"]
[Termination "praveenb2002 won by resignation"]

1. e4 {[%clk 0:03:00.9]} 1... d5 {[%clk 0:02:58.5]} 2. exd5 {[%clk 0:03:00.6]}
2... Qxd5 {[%clk 0:02:51.4]} 3. Nc3 {[%clk 0:03:01.2]} 3... Qa5 {[%clk
0:02:50.7]} 4. d4 {[%clk 0:03:00.6]} 4... Nf6 {[%clk 0:02:44.5]} 5. Nf3 {[%clk
0:03:00.6]} 5... Nc6 {[%clk 0:02:43.7]} 6. Bb5 {[%clk 0:02:56.2]} 6... Ne4
{[%clk 0:02:41.6]} 7. Qd3 {[%clk 0:02:54.3]} 7... Nxc3 {[%clk 0:02:38.5]} 8.
bxc3 {[%clk 0:02:55.2]} 8... a6 {[%clk 0:02:38.2]} 9. Bxc6+ {[%clk 0:02:54.5]}
9... bxc6 {[%clk 0:02:39.1]} 10. Ne5 {[%clk 0:02:54.1]} 10... f6 {[%clk
0:02:35.1]} 11. Nc4 {[%clk 0:02:54.4]} 11... Qf5 {[%clk 0:02:34.8]} 12. Qe2
{[%clk 0:02:49.5]} 12... Qe6 {[%clk 0:02:34]} 13. Ne3 {[%clk 0:02:40.9]} 13...
a5 {[%clk 0:02:25.6]} 14. O-O {[%clk 0:02:40.4]} 14... Ba6 {[%clk 0:02:24.5]}
15. c4 {[%clk 0:02:35]} 15... g6 {[%clk 0:01:58.4]} 16. Ba3 {[%clk 0:02:33.7]}
16... Kf7 {[%clk 0:01:56.1]} 17. Rfe1 {[%clk 0:02:32.9]} 17... h5 {[%clk
0:01:54.2]} 18. d5 {[%clk 0:02:22]} 18... cxd5 {[%clk 0:01:52.3]} 19. cxd5
{[%clk 0:02:22.2]} 19... Qe4 {[%clk 0:01:50.3]} 20. c4 {[%clk 0:02:20.1]} 20...
Bh6 {[%clk 0:01:47]} 21. Qd1 {[%clk 0:02:09.8]} 21... Rhe8 {[%clk 0:01:25.9]}
22. h3 {[%clk 0:02:07]} 22... Bxe3 {[%clk 0:01:20.6]} 23. Rxe3 {[%clk
0:02:07.9]} 23... Qxc4 {[%clk 0:01:20.6]} 24. Rc1 {[%clk 0:02:08.3]} 24... Qxa2
{[%clk 0:01:12.8]} 25. Rxc7 {[%clk 0:02:07.7]} 25... Rad8 {[%clk 0:00:57.9]} 26.
d6 {[%clk 0:01:52.8]} 26... Kg8 {[%clk 0:00:42.3]} 27. d7 {[%clk 0:01:44.8]}
27... Rf8 {[%clk 0:00:31]} 28. Bxe7 {[%clk 0:01:44.1]} 28... Qf7 {[%clk
0:00:24.8]} 29. Bxd8 {[%clk 0:01:36.2]} 29... Rxd8 {[%clk 0:00:24]} 30. Qe1
{[%clk 0:01:35.2]} 30... Rxd7 {[%clk 0:00:20.5]} 31. Re8+ {[%clk 0:01:35.3]}
31... Kg7 {[%clk 0:00:20.5]} 32. Rxd7 {[%clk 0:01:35.7]} 1-0